[Event "Early-Titled-Tuesday-Blitz-August-29-2023"]
[Site "Chess.com"]
[Date "2023.08.29"]
[Round "3"]
[White "DarZay"]
[Black "regular_legs"]
[Result "0-1"]
[WhiteElo "2269"]
[BlackElo "2495"]
[TimeControl "180+1"]
[EndTime "8:29:45 PDT"]
[Termination "regular_legs won on time"]

1. e4 {[%clk 0:02:56.4]} 1... c5 {[%clk 0:02:55.8]} 2. Nf3 {[%clk 0:02:56]} 2...
e6 {[%clk 0:02:56.3]} 3. d4 {[%clk 0:02:56.2]} 3... cxd4 {[%clk 0:02:57.2]} 4.
Nxd4 {[%clk 0:02:56.4]} 4... a6 {[%clk 0:02:57.8]} 5. Nc3 {[%clk 0:02:55.8]}
5... Qc7 {[%clk 0:02:57.9]} 6. Be2 {[%clk 0:02:50.5]} 6... b5 {[%clk 0:02:52.7]}
7. O-O {[%clk 0:02:47.5]} 7... Bb7 {[%clk 0:02:52.9]} 8. Bf3 {[%clk 0:02:46.5]}
8... d6 {[%clk 0:02:46.5]} 9. Re1 {[%clk 0:02:42.6]} 9... Nd7 {[%clk 0:02:44.4]}
10. Be3 {[%clk 0:02:07.7]} 10... Rc8 {[%clk 0:02:40.2]} 11. Ndxb5 {[%clk
0:01:51.6]} 11... axb5 {[%clk 0:02:37.3]} 12. Nxb5 {[%clk 0:01:51.9]} 12... Qb8
{[%clk 0:02:32.1]} 13. Ba7 {[%clk 0:01:45.7]} 13... Qa8 {[%clk 0:02:31.9]} 14.
Qd4 {[%clk 0:01:40.3]} 14... Ngf6 {[%clk 0:02:08.8]} 15. Bb6 {[%clk 0:01:29.3]}
15... Nxb6 {[%clk 0:01:44]} 16. Qxb6 {[%clk 0:01:28.5]} 16... Qb8 {[%clk
0:01:43.8]} 17. Na7 {[%clk 0:01:16.6]} 17... Nd7 {[%clk 0:01:34.1]} 18. Qa5
{[%clk 0:01:09.4]} 18... Rc5 {[%clk 0:01:32]} 19. Nb5 {[%clk 0:01:07.6]} 19...
Be7 {[%clk 0:01:25]} 20. b4 {[%clk 0:01:00.3]} 20... Rxc2 {[%clk 0:01:21.1]} 21.
Rac1 {[%clk 0:01:00.5]} 21... Rxc1 {[%clk 0:01:21.1]} 22. Rxc1 {[%clk
0:01:00.8]} 22... O-O {[%clk 0:01:21.5]} 23. Rc7 {[%clk 0:00:59.4]} 23... Rd8
{[%clk 0:01:14.5]} 24. Nxd6 {[%clk 0:00:56.5]} 24... Bxd6 {[%clk 0:00:58.5]} 25.
Rxb7 {[%clk 0:00:56.5]} 25... Qc8 {[%clk 0:00:54.4]} 26. g3 {[%clk 0:00:46.2]}
26... Rf8 {[%clk 0:00:46.7]} 27. Ra7 {[%clk 0:00:41.7]} 27... Ne5 {[%clk
0:00:42.9]} 28. Be2 {[%clk 0:00:34.4]} 28... Qc2 {[%clk 0:00:40]} 29. Qa6 {[%clk
0:00:24.3]} 29... Bxb4 {[%clk 0:00:37.2]} 30. a4 {[%clk 0:00:20.3]} 30... Bc5
{[%clk 0:00:35.4]} 31. Rb7 {[%clk 0:00:16.9]} 31... Ng4 {[%clk 0:00:29.4]} 32.
Qc4 {[%clk 0:00:08.7]} 32... Qxc4 {[%clk 0:00:27.4]} 33. Bxc4 {[%clk 0:00:08.6]}
33... Nxf2 {[%clk 0:00:28]} 34. Kg2 {[%clk 0:00:05.9]} 34... Nxe4 {[%clk
0:00:27.8]} 35. Rc7 {[%clk 0:00:04.9]} 35... Bd4 {[%clk 0:00:24.1]} 36. a5
{[%clk 0:00:04.6]} 36... g6 {[%clk 0:00:22.4]} 37. a6 {[%clk 0:00:04]} 37... Ra8
{[%clk 0:00:20.5]} 38. Rd7 {[%clk 0:00:01.6]} 38... Bb6 {[%clk 0:00:15.1]} 39.
Rb7 {[%clk 0:00:01.7]} 39... Bc5 {[%clk 0:00:14.9]} 40. Rb5 {[%clk 0:00:02]}
40... Rd8 {[%clk 0:00:07.9]} 41. Ra5 {[%clk 0:00:02]} 41... Kg7 {[%clk
0:00:07.2]} 42. Kf3 {[%clk 0:00:02.2]} 42... Nd2+ {[%clk 0:00:06.5]} 43. Kf4
{[%clk 0:00:02.5]} 43... Nxc4 {[%clk 0:00:07.4]} 44. Rxc5 {[%clk 0:00:02.9]}
44... Nb6 {[%clk 0:00:07.6]} 45. Ra5 {[%clk 0:00:02.7]} 45... Nd5+ {[%clk
0:00:07.9]} 46. Ke4 {[%clk 0:00:02.7]} 46... Ra8 {[%clk 0:00:07.8]} 47. a7
{[%clk 0:00:02.3]} 47... Kf6 {[%clk 0:00:07.5]} 48. g4 {[%clk 0:00:02.1]} 48...
h6 {[%clk 0:00:06.9]} 49. h4 {[%clk 0:00:02.3]} 49... Ke7 {[%clk 0:00:07.3]} 50.
Ra6 {[%clk 0:00:02.3]} 50... Kd7 {[%clk 0:00:07.6]} 51. Ke5 {[%clk 0:00:02.9]}
51... Nc7 {[%clk 0:00:06.3]} 52. Ra5 {[%clk 0:00:02.1]} 52... Kc6 {[%clk
0:00:05.2]} 53. Kf6 {[%clk 0:00:01.9]} 53... Kb6 {[%clk 0:00:03.8]} 54. Ra3
{[%clk 0:00:02.1]} 54... Rxa7 {[%clk 0:00:04.7]} 55. Rb3+ {[%clk 0:00:02]} 55...
Nb5 {[%clk 0:00:04.6]} 0-1

[Event "Early-Titled-Tuesday-Blitz-August-29-2023"]
[Site "Chess.com"]
[Date "2023.08.29"]
[Round "3"]
[White "komogro"]
[Black "HrvojeZagreb"]
[Result "1/2-1/2"]
[WhiteElo "2473"]
[BlackElo "2290"]
[TimeControl "180+1"]
[EndTime "8:29:45 PDT"]
[Termination "Game drawn by repetition"]

1. Nf3 {[%clk 0:01:54.1]} 1... f5 {[%clk 0:02:55.2]} 2. d3 {[%clk 0:01:54]} 2...
d6 {[%clk 0:02:55.4]} 3. e4 {[%clk 0:01:54.2]} 3... e5 {[%clk 0:02:55.1]} 4. Nc3
{[%clk 0:01:53.5]} 4... Nf6 {[%clk 0:02:55.2]} 5. Bg5 {[%clk 0:01:50.4]} 5...
Be7 {[%clk 0:02:54.1]} 6. exf5 {[%clk 0:01:31.2]} 6... Bxf5 {[%clk 0:02:52.8]}
7. d4 {[%clk 0:01:32.1]} 7... e4 {[%clk 0:02:39.3]} 8. Nd2 {[%clk 0:01:32.3]}
8... d5 {[%clk 0:02:38.9]} 9. f3 {[%clk 0:01:30.3]} 9... O-O {[%clk 0:02:11.7]}
10. Bxf6 {[%clk 0:01:25.3]} 10... Bxf6 {[%clk 0:02:09]} 11. fxe4 {[%clk
0:01:25.5]} 11... dxe4 {[%clk 0:01:56.3]} 12. Bc4+ {[%clk 0:01:25.5]} 12... Kh8
{[%clk 0:01:53]} 13. O-O {[%clk 0:01:17.1]} 13... Qxd4+ {[%clk 0:01:39.7]} 14.
Kh1 {[%clk 0:01:17.4]} 14... e3 {[%clk 0:01:30.9]} 15. Rxf5 {[%clk 0:01:14.8]}
15... exd2 {[%clk 0:01:28.3]} 16. Bd3 {[%clk 0:01:14.9]} 16... g6 {[%clk
0:01:18.2]} 17. Rf3 {[%clk 0:01:09.3]} 17... Nc6 {[%clk 0:01:10.9]} 18. Qxd2
{[%clk 0:00:54.9]} 18... Ne5 {[%clk 0:01:08]} 19. Rf4 {[%clk 0:00:41.3]} 19...
Qd6 {[%clk 0:00:43.7]} 20. Ne4 {[%clk 0:00:40.7]} 20... Qe7 {[%clk 0:00:31.6]}
21. Nxf6 {[%clk 0:00:17.5]} 21... Rxf6 {[%clk 0:00:32.5]} 22. Re4 {[%clk
0:00:17.4]} 22... Qd6 {[%clk 0:00:26.1]} 23. Qc3 {[%clk 0:00:11.4]} 23... Nxd3
{[%clk 0:00:22.2]} 24. cxd3 {[%clk 0:00:11.7]} 24... Rf8 {[%clk 0:00:21.7]} 25.
Rf1 {[%clk 0:00:10.9]} 25... Kg7 {[%clk 0:00:20.4]} 26. Rxf6 {[%clk 0:00:09]}
26... Qxf6 {[%clk 0:00:18.5]} 27. Re7+ {[%clk 0:00:08.7]} 27... Rf7 {[%clk
0:00:18.6]} 28. Qxf6+ {[%clk 0:00:08.3]} 28... Kxf6 {[%clk 0:00:18.1]} 29. Re3
{[%clk 0:00:05.4]} 29... Rd7 {[%clk 0:00:17.5]} 30. Kg1 {[%clk 0:00:06]} 30...
Rd4 {[%clk 0:00:16.9]} 31. Kf2 {[%clk 0:00:06.3]} 31... Rb4 {[%clk 0:00:16.8]}
32. b3 {[%clk 0:00:06.7]} 32... a5 {[%clk 0:00:17]} 33. Re8 {[%clk 0:00:04]}
33... a4 {[%clk 0:00:16.5]} 34. Rc8 {[%clk 0:00:04.2]} 34... c6 {[%clk
0:00:16.3]} 35. bxa4 {[%clk 0:00:03.6]} 35... Rxa4 {[%clk 0:00:15.5]} 36. Rc7
{[%clk 0:00:04.5]} 36... Rxa2+ {[%clk 0:00:15.6]} 37. Kf3 {[%clk 0:00:05.1]}
37... Rb2 {[%clk 0:00:14.5]} 38. Rxh7 {[%clk 0:00:04.8]} 38... b5 {[%clk
0:00:14.2]} 39. Rc7 {[%clk 0:00:04.8]} 39... Rc2 {[%clk 0:00:14.4]} 40. h4
{[%clk 0:00:04.3]} 40... b4 {[%clk 0:00:14.6]} 41. g4 {[%clk 0:00:04.8]} 41...
c5 {[%clk 0:00:13.1]} 42. Rb7 {[%clk 0:00:03.1]} 42... Rc3 {[%clk 0:00:11.8]}
43. Ke4 {[%clk 0:00:03.5]} 43... c4 {[%clk 0:00:10.8]} 44. dxc4 {[%clk
0:00:02.6]} 44... Rxc4+ {[%clk 0:00:11.7]} 45. Kf3 {[%clk 0:00:03.3]} 45... Rc3+
{[%clk 0:00:11.5]} 46. Kf4 {[%clk 0:00:03.6]} 46... b3 {[%clk 0:00:12.4]} 47.
Rb6+ {[%clk 0:00:03.9]} 47... Kg7 {[%clk 0:00:12.2]} 48. Kg5 {[%clk 0:00:04.2]}
48... Rc5+ {[%clk 0:00:11.8]} 49. Kf4 {[%clk 0:00:04.9]} 49... Rc4+ {[%clk
0:00:12]} 50. Kf3 {[%clk 0:00:05.3]} 50... Rc3+ {[%clk 0:00:12.2]} 51. Kf4
{[%clk 0:00:05.9]} 51... Rc4+ {[%clk 0:00:12.3]} 52. Kg3 {[%clk 0:00:06.6]}
52... Rc3+ {[%clk 0:00:12.5]} 53. Kf4 {[%clk 0:00:07]} 53... Rc4+ {[%clk
0:00:12.6]} 1/2-1/2

[Event "Early-Titled-Tuesday-Blitz-August-29-2023"]
[Site "Chess.com"]
[Date "2023.08.29"]
[Round "3"]
[White "AsaHoffmann"]
[Black "ferrufino64"]
[Result "0-1"]
[WhiteElo "2361"]
[BlackElo "2100"]
[TimeControl "180+1"]
[EndTime "8:29:49 PDT"]
[Termination "ferrufino64 won by resignation"]

1. d4 {[%clk 0:02:59.2]} 1... d5 {[%clk 0:02:55.2]} 2. Bg5 {[%clk 0:02:58.1]}
2... Nd7 {[%clk 0:02:54.5]} 3. c4 {[%clk 0:02:57.5]} 3... c6 {[%clk 0:02:54.3]}
4. cxd5 {[%clk 0:02:57.5]} 4... cxd5 {[%clk 0:02:54.6]} 5. Nc3 {[%clk
0:02:57.5]} 5... Ngf6 {[%clk 0:02:55]} 6. e3 {[%clk 0:02:57.5]} 6... e6 {[%clk
0:02:55.4]} 7. f4 {[%clk 0:02:57.5]} 7... Be7 {[%clk 0:02:55.7]} 8. Bd3 {[%clk
0:02:57.4]} 8... O-O {[%clk 0:02:46.9]} 9. Nf3 {[%clk 0:02:57.1]} 9... b6 {[%clk
0:02:47.3]} 10. O-O {[%clk 0:02:56.7]} 10... Bb7 {[%clk 0:02:47.8]} 11. Ne5
{[%clk 0:02:54.6]} 11... a6 {[%clk 0:02:28.2]} 12. Qf3 {[%clk 0:02:53.3]} 12...
b5 {[%clk 0:02:13.1]} 13. a3 {[%clk 0:02:44.9]} 13... Rc8 {[%clk 0:02:12.5]} 14.
Rac1 {[%clk 0:02:44.1]} 14... Ne4 {[%clk 0:01:33.4]} 15. Bxe7 {[%clk 0:02:38.3]}
15... Qxe7 {[%clk 0:01:33.6]} 16. Nxe4 {[%clk 0:02:37.7]} 16... dxe4 {[%clk
0:01:33.3]} 17. Bxe4 {[%clk 0:02:37.7]} 17... Bxe4 {[%clk 0:01:29.1]} 18. Qxe4
{[%clk 0:02:37.4]} 18... Nf6 {[%clk 0:01:29.1]} 19. Qf3 {[%clk 0:02:36.7]} 19...
b4 {[%clk 0:01:21.8]} 20. a4 {[%clk 0:02:35.4]} 20... b3 {[%clk 0:01:21.4]} 21.
Qe2 {[%clk 0:02:26.3]} 21... Qb4 {[%clk 0:01:20.7]} 22. Qxa6 {[%clk 0:02:22.6]}
22... Rxc1 {[%clk 0:01:20]} 23. Rxc1 {[%clk 0:02:22]} 23... Qd2 {[%clk
0:01:20.2]} 24. Qc4 {[%clk 0:01:44.4]} 24... Qxe3+ {[%clk 0:01:13.4]} 25. Kh1
{[%clk 0:01:41.6]} 25... Ne4 {[%clk 0:01:13.6]} 26. g3 {[%clk 0:01:21.4]} 26...
Qd2 {[%clk 0:00:14.1]} 27. Rf1 {[%clk 0:01:04]} 27... Qxb2 {[%clk 0:00:09.6]}
28. d5 {[%clk 0:00:40.7]} 28... Nd2 {[%clk 0:00:09.5]} 29. Qe2 {[%clk
0:00:37.3]} 29... Qc3 {[%clk 0:00:05.7]} 30. Rf2 {[%clk 0:00:31.2]} 30... b2
{[%clk 0:00:05.8]} 31. Qxd2 {[%clk 0:00:28]} 31... b1=Q+ {[%clk 0:00:05.3]} 32.
Kg2 {[%clk 0:00:27.8]} 32... Qxd2 {[%clk 0:00:05.7]} 33. Rxd2 {[%clk 0:00:27.5]}
33... Qe4+ {[%clk 0:00:06.4]} 34. Kf2 {[%clk 0:00:26.1]} 34... exd5 {[%clk
0:00:06.8]} 35. a5 {[%clk 0:00:25.4]} 35... f6 {[%clk 0:00:07.2]} 36. Nf3 {[%clk
0:00:24.7]} 36... Ra8 {[%clk 0:00:06.1]} 37. Re2 {[%clk 0:00:23.3]} 37... Qc4
{[%clk 0:00:05.6]} 38. f5 {[%clk 0:00:21.9]} 38... Rxa5 {[%clk 0:00:04.6]} 39.
Rd2 {[%clk 0:00:21.4]} 39... Qc5+ {[%clk 0:00:04.4]} 40. Kg2 {[%clk 0:00:21.2]}
40... h6 {[%clk 0:00:04.4]} 41. h3 {[%clk 0:00:20.7]} 41... Qc4 {[%clk
0:00:04.6]} 42. h4 {[%clk 0:00:20.1]} 42... Ra2 {[%clk 0:00:04.9]} 43. Rf2
{[%clk 0:00:19.3]} 43... Rxf2+ {[%clk 0:00:04.7]} 44. Kxf2 {[%clk 0:00:19.4]}
44... Qe4 {[%clk 0:00:05.3]} 45. Nd2 {[%clk 0:00:18.5]} 45... Qxf5+ {[%clk
0:00:05.6]} 46. Ke3 {[%clk 0:00:18.6]} 46... g5 {[%clk 0:00:06]} 47. Nf3 {[%clk
0:00:18.3]} 47... Qg4 {[%clk 0:00:05.5]} 48. Kf2 {[%clk 0:00:17.8]} 48... f5
{[%clk 0:00:05.8]} 49. hxg5 {[%clk 0:00:16.6]} 49... hxg5 {[%clk 0:00:05.9]} 50.
Ke2 {[%clk 0:00:16.3]} 50... Qe4+ {[%clk 0:00:05.4]} 51. Kf2 {[%clk 0:00:16.3]}
51... g4 {[%clk 0:00:05.3]} 52. Nh4 {[%clk 0:00:16.2]} 52... Qd4+ {[%clk
0:00:05.6]} 53. Ke2 {[%clk 0:00:16.1]} 53... Qe4+ {[%clk 0:00:05.6]} 54. Kf2
{[%clk 0:00:16.2]} 54... Qc2+ {[%clk 0:00:05.5]} 55. Ke3 {[%clk 0:00:16.2]}
55... d4+ {[%clk 0:00:05.7]} 56. Kxd4 {[%clk 0:00:15.6]} 56... Qf2+ {[%clk
0:00:05.4]} 57. Ke5 {[%clk 0:00:15.2]} 57... Qxg3+ {[%clk 0:00:03.8]} 58. Kxf5
{[%clk 0:00:15]} 58... Qxh4 {[%clk 0:00:03.2]} 59. Kf4 {[%clk 0:00:14.6]} 59...
g3+ {[%clk 0:00:03.9]} 60. Kf3 {[%clk 0:00:14.6]} 60... Qh2 {[%clk 0:00:04.4]}
61. Kg4 {[%clk 0:00:14.1]} 61... g2 {[%clk 0:00:04.6]} 62. Kf5 {[%clk
0:00:14.1]} 62... g1=Q {[%clk 0:00:04.2]} 63. Ke6 {[%clk 0:00:14]} 63... Qe2+
{[%clk 0:00:04.4]} 0-1

[Event "Early-Titled-Tuesday-Blitz-August-29-2023"]
[Site "Chess.com"]
[Date "2023.08.29"]
[Round "3"]
[White "atbenina64"]
[Black "NovozhilovSemen"]
[Result "1-0"]
[WhiteElo "2798"]
[BlackElo "2499"]
[TimeControl "180+1"]
[EndTime "8:29:50 PDT"]
[Termination "atbenina64 won by resignation"]

1. Nf3 {[%clk 0:03:00.9]} 1... Nf6 {[%clk 0:02:59.3]} 2. g3 {[%clk 0:03:01.2]}
2... d5 {[%clk 0:02:59.3]} 3. Bg2 {[%clk 0:03:02.1]} 3... c6 {[%clk 0:02:59.6]}
4. O-O {[%clk 0:03:01.2]} 4... Bg4 {[%clk 0:02:59.8]} 5. c4 {[%clk 0:03:01.3]}
5... Nbd7 {[%clk 0:02:59.7]} 6. cxd5 {[%clk 0:03:00.7]} 6... cxd5 {[%clk
0:03:00.6]} 7. Qb3 {[%clk 0:03:01.6]} 7... Qc8 {[%clk 0:02:55.8]} 8. Nc3 {[%clk
0:02:57.9]} 8... e6 {[%clk 0:02:55.2]} 9. d4 {[%clk 0:02:55.8]} 9... Bd6 {[%clk
0:02:54.5]} 10. Nb5 {[%clk 0:02:55.9]} 10... Bb8 {[%clk 0:02:54.1]} 11. Qa3
{[%clk 0:02:47.9]} 11... Qc6 {[%clk 0:02:50.4]} 12. Nc3 {[%clk 0:02:35.2]} 12...
Bd6 {[%clk 0:02:49.4]} 13. Qb3 {[%clk 0:02:34.7]} 13... O-O {[%clk 0:02:49.2]}
14. Bf4 {[%clk 0:02:35.4]} 14... Bxf4 {[%clk 0:02:42.5]} 15. gxf4 {[%clk
0:02:36.3]} 15... Ne4 {[%clk 0:02:42.8]} 16. Nxe4 {[%clk 0:02:33.3]} 16... dxe4
{[%clk 0:02:43.1]} 17. Nd2 {[%clk 0:02:34.1]} 17... Bxe2 {[%clk 0:02:41.2]} 18.
Rfe1 {[%clk 0:02:34.8]} 18... Bh5 {[%clk 0:02:19.2]} 19. Nxe4 {[%clk 0:02:34.8]}
19... Qc7 {[%clk 0:02:18.8]} 20. d5 {[%clk 0:02:32.4]} 20... exd5 {[%clk
0:01:37]} 21. Qxd5 {[%clk 0:02:33.3]} 21... Bg4 {[%clk 0:01:37.1]} 22. f5 {[%clk
0:02:17.5]} 22... Rad8 {[%clk 0:01:29.9]} 23. h3 {[%clk 0:02:16.8]} 23... Bh5
{[%clk 0:01:10.9]} 24. Ng3 {[%clk 0:02:07.9]} 24... Nf6 {[%clk 0:01:03.9]} 25.
Qxb7 {[%clk 0:02:08.2]} 25... Qf4 {[%clk 0:01:01.4]} 26. Qxa7 {[%clk 0:02:05.9]}
26... Rd4 {[%clk 0:00:48.6]} 27. a4 {[%clk 0:02:01.9]} 27... Rfd8 {[%clk
0:00:45.6]} 28. a5 {[%clk 0:02:01.1]} 28... Bf3 {[%clk 0:00:45.7]} 29. Ra3
{[%clk 0:01:49.1]} 29... Bxg2 {[%clk 0:00:41.1]} 30. Kxg2 {[%clk 0:01:50]} 30...
h5 {[%clk 0:00:42]} 31. Rf3 {[%clk 0:01:47]} 31... Qg5 {[%clk 0:00:41.1]} 32.
Kh1 {[%clk 0:01:28.4]} 32... h4 {[%clk 0:00:40.7]} 33. Ne2 {[%clk 0:01:28.7]}
33... Rd3 {[%clk 0:00:34.3]} 34. Qb7 {[%clk 0:01:27.5]} 34... Qd2 {[%clk
0:00:29.8]} 35. Rg1 {[%clk 0:01:15.5]} 35... Qxe2 {[%clk 0:00:27.5]} 36. Rxd3
{[%clk 0:01:15.9]} 36... Rxd3 {[%clk 0:00:24.8]} 37. Qg2 {[%clk 0:01:12.3]}
37... Nh5 {[%clk 0:00:15.8]} 38. a6 {[%clk 0:01:05.2]} 38... Rd7 {[%clk
0:00:15.7]} 39. Qg4 {[%clk 0:01:00.7]} 39... Qxg4 {[%clk 0:00:14.8]} 40. hxg4
{[%clk 0:01:01.6]} 40... Nf4 {[%clk 0:00:14.6]} 41. b4 {[%clk 0:00:57.9]} 41...
Nd5 {[%clk 0:00:13.4]} 42. Rd1 {[%clk 0:00:56.5]} 42... Nb6 {[%clk 0:00:11.2]}
43. Rc1 {[%clk 0:00:51.8]} 43... Rd4 {[%clk 0:00:09.4]} 44. b5 {[%clk 0:00:50]}
44... Rb4 {[%clk 0:00:08]} 45. a7 {[%clk 0:00:47.7]} 45... Kh7 {[%clk
0:00:08.3]} 46. Rc6 {[%clk 0:00:45.9]} 46... Na8 {[%clk 0:00:08.6]} 47. Rc8
{[%clk 0:00:44.3]} 47... Rxb5 {[%clk 0:00:06.4]} 48. Rxa8 {[%clk 0:00:44]} 48...
Ra5 {[%clk 0:00:07.1]} 49. g5 {[%clk 0:00:44.2]} 49... g6 {[%clk 0:00:06.7]} 50.
f6 {[%clk 0:00:35.9]} 50... Ra3 {[%clk 0:00:06]} 51. Kh2 {[%clk 0:00:33.8]}
51... h3 {[%clk 0:00:04.6]} 52. Re8 {[%clk 0:00:31.3]} 52... Rxa7 {[%clk
0:00:04.2]} 53. Re7 {[%clk 0:00:31.3]} 53... Ra2 {[%clk 0:00:04.6]} 54. Rxf7+
{[%clk 0:00:30.8]} 54... Kg8 {[%clk 0:00:05.2]} 55. Rg7+ {[%clk 0:00:31]} 55...
Kh8 {[%clk 0:00:06]} 56. Rxg6 {[%clk 0:00:30.6]} 56... Rxf2+ {[%clk 0:00:06]}
57. Kxh3 {[%clk 0:00:31.3]} 57... Kh7 {[%clk 0:00:06.3]} 58. Rg7+ {[%clk
0:00:30.9]} 58... Kh8 {[%clk 0:00:06.8]} 59. Re7 {[%clk 0:00:30.4]} 59... Kg8
{[%clk 0:00:06.4]} 60. Kg4 {[%clk 0:00:28.7]} 60... Rh2 {[%clk 0:00:06.7]} 61.
Kf5 {[%clk 0:00:28.5]} 61... Kf8 {[%clk 0:00:02.4]} 62. Kg6 {[%clk 0:00:26.8]}
62... Ra2 {[%clk 0:00:03]} 63. Rf7+ {[%clk 0:00:26.8]} 63... Kg8 {[%clk
0:00:02.9]} 64. Rh7 {[%clk 0:00:26.1]} 64... Ra8 {[%clk 0:00:03.4]} 65. f7+
{[%clk 0:00:26.3]} 1-0

[Event "Early-Titled-Tuesday-Blitz-August-29-2023"]
[Site "Chess.com"]
[Date "2023.08.29"]
[Round "3"]
[White "TanitoluwaAps116"]
[Black "OparinGrigoriy"]
[Result "1/2-1/2"]
[WhiteElo "2767"]
[BlackElo "2972"]
[TimeControl "180+1"]
[EndTime "8:29:57 PDT"]
[Termination "Game drawn by stalemate"]

1. e4 {[%clk 0:02:50.4]} 1... c6 {[%clk 0:02:59.4]} 2. d4 {[%clk 0:02:50.3]}
2... d5 {[%clk 0:03:00.3]} 3. exd5 {[%clk 0:02:50.5]} 3... cxd5 {[%clk
0:03:00.8]} 4. Bd3 {[%clk 0:02:51.2]} 4... Nf6 {[%clk 0:03:01.3]} 5. c3 {[%clk
0:02:51.4]} 5... Nc6 {[%clk 0:03:01.8]} 6. Bf4 {[%clk 0:02:52]} 6... Bg4 {[%clk
0:03:01.1]} 7. Qb3 {[%clk 0:02:52.3]} 7... Qd7 {[%clk 0:03:01.5]} 8. Nd2 {[%clk
0:02:52.2]} 8... e6 {[%clk 0:03:02.1]} 9. Ngf3 {[%clk 0:02:53]} 9... Bd6 {[%clk
0:03:02.4]} 10. Bxd6 {[%clk 0:02:52.9]} 10... Qxd6 {[%clk 0:03:03.3]} 11. O-O
{[%clk 0:02:53]} 11... O-O {[%clk 0:03:03.9]} 12. Rfe1 {[%clk 0:02:52.8]} 12...
Qc7 {[%clk 0:03:04.6]} 13. Ne5 {[%clk 0:02:47.7]} 13... Bh5 {[%clk 0:03:04.5]}
14. f4 {[%clk 0:02:47.4]} 14... a6 {[%clk 0:02:50.2]} 15. a4 {[%clk 0:02:38.8]}
15... Rab8 {[%clk 0:02:50.5]} 16. Qc2 {[%clk 0:02:28.1]} 16... Rfc8 {[%clk
0:02:50.5]} 17. Rac1 {[%clk 0:02:21.7]} 17... b5 {[%clk 0:02:49.9]} 18. axb5
{[%clk 0:02:19.6]} 18... axb5 {[%clk 0:02:50.8]} 19. b4 {[%clk 0:02:15]} 19...
Bg6 {[%clk 0:02:51]} 20. Nxg6 {[%clk 0:02:06.4]} 20... hxg6 {[%clk 0:02:51.9]}
21. g3 {[%clk 0:02:06.6]} 21... Ne8 {[%clk 0:02:47.5]} 22. Nb3 {[%clk
0:02:01.7]} 22... Nd6 {[%clk 0:02:47.9]} 23. Nc5 {[%clk 0:02:01]} 23... Ra8
{[%clk 0:02:48.4]} 24. Ra1 {[%clk 0:02:00.7]} 24... Ne7 {[%clk 0:02:46.2]} 25.
Qe2 {[%clk 0:01:52.2]} 25... Rcb8 {[%clk 0:02:26.4]} 26. Na6 {[%clk 0:01:46.9]}
26... Rxa6 {[%clk 0:02:25.2]} 27. Rxa6 {[%clk 0:01:47.8]} 27... Nef5 {[%clk
0:02:13.8]} 28. Ra3 {[%clk 0:01:11.7]} 28... Qc6 {[%clk 0:01:58.7]} 29. Qe5
{[%clk 0:01:08.3]} 29... Rc8 {[%clk 0:01:53.2]} 30. g4 {[%clk 0:01:01.2]} 30...
Ne7 {[%clk 0:01:35.9]} 31. Qg5 {[%clk 0:00:47.8]} 31... Kf8 {[%clk 0:01:28.9]}
32. Re3 {[%clk 0:00:38.6]} 32... Ng8 {[%clk 0:01:16.4]} 33. Ra7 {[%clk
0:00:37.4]} 33... Qxc3 {[%clk 0:01:10.6]} 34. Qe5 {[%clk 0:00:36.2]} 34... Qxb4
{[%clk 0:01:01]} 35. Rd7 {[%clk 0:00:24]} 35... Ne8 {[%clk 0:00:33.7]} 36. Rxf7+
{[%clk 0:00:11.6]} 36... Kxf7 {[%clk 0:00:33]} 37. Qxe6+ {[%clk 0:00:08.8]}
37... Kf8 {[%clk 0:00:32.9]} 38. Qxc8 {[%clk 0:00:08.1]} 38... Nf6 {[%clk
0:00:27.3]} 39. Bxg6 {[%clk 0:00:08.3]} 39... Qxd4 {[%clk 0:00:27.4]} 40. Kf2
{[%clk 0:00:06.4]} 40... Qxf4+ {[%clk 0:00:21.2]} 41. Ke2 {[%clk 0:00:05.2]}
41... Qc4+ {[%clk 0:00:12.4]} 42. Qxc4 {[%clk 0:00:05.4]} 42... bxc4 {[%clk
0:00:13.3]} 43. g5 {[%clk 0:00:06.1]} 43... Ne4 {[%clk 0:00:12.9]} 44. Bxe4
{[%clk 0:00:06.4]} 44... dxe4 {[%clk 0:00:13.8]} 45. Rxe4 {[%clk 0:00:07.3]}
45... Nd6 {[%clk 0:00:14.5]} 46. Rd4 {[%clk 0:00:07.2]} 46... Nf7 {[%clk
0:00:14.9]} 47. h4 {[%clk 0:00:06.4]} 47... Ne5 {[%clk 0:00:15]} 48. Re4 {[%clk
0:00:07]} 48... Ng6 {[%clk 0:00:11.8]} 49. Rxc4 {[%clk 0:00:07.3]} 49... Kf7
{[%clk 0:00:12.6]} 50. Kf3 {[%clk 0:00:07.8]} 50... Ne5+ {[%clk 0:00:12.9]} 51.
Ke4 {[%clk 0:00:07.4]} 51... Nxc4 {[%clk 0:00:13.8]} 52. Kf5 {[%clk 0:00:07]}
52... Nd6+ {[%clk 0:00:13.8]} 53. Ke5 {[%clk 0:00:06.7]} 53... Nc4+ {[%clk
0:00:13.7]} 54. Kf5 {[%clk 0:00:05.2]} 54... Ne3+ {[%clk 0:00:14.1]} 55. Kf4
{[%clk 0:00:05]} 55... Ng2+ {[%clk 0:00:14.2]} 56. Kg3 {[%clk 0:00:05]} 56...
Ne1 {[%clk 0:00:14.7]} 57. h5 {[%clk 0:00:05]} 57... Nd3 {[%clk 0:00:13.7]} 58.
Kg4 {[%clk 0:00:04.5]} 58... Nb4 {[%clk 0:00:12.7]} 59. Kf5 {[%clk 0:00:04.9]}
59... Nd5 {[%clk 0:00:12.5]} 60. g6+ {[%clk 0:00:04.6]} 60... Kg8 {[%clk
0:00:09.1]} 61. Kg5 {[%clk 0:00:05]} 61... Nc3 {[%clk 0:00:05.6]} 62. h6 {[%clk
0:00:05.3]} 62... Ne4+ {[%clk 0:00:06.3]} 63. Kf5 {[%clk 0:00:03.9]} 63... Ng3+
{[%clk 0:00:05.4]} 64. Kg4 {[%clk 0:00:04]} 64... gxh6 {[%clk 0:00:05.7]} 65.
Kxg3 {[%clk 0:00:04.5]} 65... Kg7 {[%clk 0:00:06.6]} 66. Kh4 {[%clk 0:00:04.9]}
66... Kxg6 {[%clk 0:00:07.5]} 67. Kg4 {[%clk 0:00:05.8]} 67... h5+ {[%clk
0:00:08.4]} 68. Kh3 {[%clk 0:00:06.4]} 68... Kg5 {[%clk 0:00:09.3]} 69. Kg3
{[%clk 0:00:07.3]} 69... h4+ {[%clk 0:00:10.1]} 70. Kh2 {[%clk 0:00:08]} 70...
Kh5 {[%clk 0:00:11]} 71. Kg2 {[%clk 0:00:08.8]} 71... Kg4 {[%clk 0:00:11.8]} 72.
Kh1 {[%clk 0:00:09.7]} 72... h3 {[%clk 0:00:12.7]} 73. Kh2 {[%clk 0:00:10.1]}
73... Kh4 {[%clk 0:00:13.2]} 74. Kh1 {[%clk 0:00:11]} 74... Kg3 {[%clk
0:00:14.1]} 75. Kg1 {[%clk 0:00:11.3]} 75... h2+ {[%clk 0:00:15]} 76. Kh1 {[%clk
0:00:12.2]} 76... Kh3 {[%clk 0:00:15]} 1/2-1/2